[Event "Early-Titled-Tuesday-Blitz-October-10-2023"]
[Site "Chess.com"]
[Date "2023.10.10"]
[Round "1"]
[White "Misticpikachu"]
[Black "Baku_Boulevard"]
[Result "0-1"]
[WhiteElo "2516"]
[BlackElo "3060"]
[TimeControl "180+1"]
[EndTime "8:02:02 PDT"]
[Termination "Baku_Boulevard won by resignation"]

1. c4 {[%clk 0:02:58.2]} 1... Nf6 {[%clk 0:02:57.8]} 2. Nc3 {[%clk 0:02:58.4]}
2... g6 {[%clk 0:02:57.7]} 3. e4 {[%clk 0:02:58.7]} 3... d6 {[%clk 0:02:57.6]}
4. g3 {[%clk 0:02:59.1]} 4... Bg7 {[%clk 0:02:57.8]} 5. Bg2 {[%clk 0:02:59.9]}
5... c5 {[%clk 0:02:58.1]} 6. d3 {[%clk 0:03:00.5]} 6... Nc6 {[%clk 0:02:58.5]}
7. Nge2 {[%clk 0:03:01.1]} 7... Rb8 {[%clk 0:02:56.8]} 8. O-O {[%clk 0:03:01.2]}
8... h5 {[%clk 0:02:56.9]} 9. h3 {[%clk 0:02:57.1]} 9... h4 {[%clk 0:02:56.8]}
10. g4 {[%clk 0:02:57.4]} 10... Nxg4 {[%clk 0:02:56.7]} 11. hxg4 {[%clk
0:02:57.2]} 11... Bxg4 {[%clk 0:02:57.6]} 12. Be3 {[%clk 0:02:55.4]} 12... h3
{[%clk 0:02:57.6]} 13. Bh1 {[%clk 0:02:54.2]} 13... h2+ {[%clk 0:02:58.1]} 14.
Kg2 {[%clk 0:02:52.7]} 14... Bh3+ {[%clk 0:02:58.3]} 15. Kf3 {[%clk 0:02:51]}
15... Qd7 {[%clk 0:02:55.1]} 16. Bf4 {[%clk 0:02:44.8]} 16... Bd4 {[%clk
0:02:50.8]} 17. Nxd4 {[%clk 0:01:57.9]} 17... Bg4+ {[%clk 0:02:49.5]} 0-1

[Event "Early-Titled-Tuesday-Blitz-October-10-2023"]
[Site "Chess.com"]
[Date "2023.10.10"]
[Round "1"]
[White "kirillshevchenko"]
[Black "AleksanderHnydiuk"]
[Result "1-0"]
[WhiteElo "2965"]
[BlackElo "2509"]
[TimeControl "180+1"]
[EndTime "8:02:36 PDT"]
[Termination "kirillshevchenko won by resignation"]

1. c4 {[%clk 0:02:57.1]} 1... Nf6 {[%clk 0:02:56.1]} 2. Nc3 {[%clk 0:02:57.1]}
2... c5 {[%clk 0:02:54.5]} 3. Nf3 {[%clk 0:02:52.1]} 3... d5 {[%clk 0:02:52.5]}
4. cxd5 {[%clk 0:02:51.2]} 4... Nxd5 {[%clk 0:02:53.4]} 5. g3 {[%clk 0:02:51.4]}
5... Nc6 {[%clk 0:02:51.9]} 6. Bg2 {[%clk 0:02:51.1]} 6... Nc7 {[%clk
0:02:52.4]} 7. d3 {[%clk 0:02:45.4]} 7... e5 {[%clk 0:02:52.6]} 8. Nd2 {[%clk
0:02:45.2]} 8... Bd7 {[%clk 0:02:50]} 9. Nc4 {[%clk 0:02:45.5]} 9... Be7 {[%clk
0:02:48.9]} 10. O-O {[%clk 0:02:44]} 10... f6 {[%clk 0:02:48.8]} 11. f4 {[%clk
0:02:43.3]} 11... exf4 {[%clk 0:02:46.1]} 12. Bxf4 {[%clk 0:02:44.2]} 12... O-O
{[%clk 0:02:45.5]} 13. Kh1 {[%clk 0:02:39.1]} 13... Kh8 {[%clk 0:02:45.3]} 14.
Rc1 {[%clk 0:02:35.5]} 14... Be6 {[%clk 0:02:44.7]} 15. Qa4 {[%clk 0:02:30.9]}
15... Nd5 {[%clk 0:02:43.2]} 16. Qb5 {[%clk 0:01:46.8]} 16... Nd4 {[%clk
0:02:33.6]} 17. Qxb7 {[%clk 0:01:43.8]} 17... Rb8 {[%clk 0:02:30]} 18. Bxb8
{[%clk 0:01:42.3]} 1-0

[Event "Early-Titled-Tuesday-Blitz-October-10-2023"]
[Site "Chess.com"]
[Date "2023.10.10"]
[Round "1"]
[White "Bilan_Danila"]
[Black "cukin84"]
[Result "1-0"]
[WhiteElo "2576"]
[BlackElo "2198"]
[TimeControl "180+1"]
[EndTime "8:02:45 PDT"]
[Termination "Bilan_Danila won by resignation"]

1. d4 {[%clk 0:02:59.8]} 1... f5 {[%clk 0:02:59.5]} 2. Nf3 {[%clk 0:02:57.6]}
2... Nf6 {[%clk 0:02:59.1]} 3. g3 {[%clk 0:02:57.2]} 3... g6 {[%clk 0:02:58.3]}
4. Bg2 {[%clk 0:02:57.5]} 4... Bg7 {[%clk 0:02:53.2]} 5. O-O {[%clk 0:02:58.4]}
5... O-O {[%clk 0:02:52.4]} 6. c4 {[%clk 0:02:59]} 6... d6 {[%clk 0:02:49.1]} 7.
Nc3 {[%clk 0:02:58.9]} 7... Qe8 {[%clk 0:02:47.4]} 8. Qc2 {[%clk 0:02:47.1]}
8... e6 {[%clk 0:02:44.6]} 9. e4 {[%clk 0:02:40.8]} 9... e5 {[%clk 0:02:34.3]}
10. dxe5 {[%clk 0:02:38.5]} 10... dxe5 {[%clk 0:02:32.6]} 11. Be3 {[%clk
0:02:12.3]} 11... Nh5 {[%clk 0:02:23.7]} 12. Bc5 {[%clk 0:02:04.3]} 12... Rf7
{[%clk 0:02:14.4]} 13. Ng5 {[%clk 0:02:03.9]} 13... Rd7 {[%clk 0:02:11.7]} 14.
exf5 {[%clk 0:02:01.1]} 14... b6 {[%clk 0:02:04.1]} 15. Bxa8 {[%clk 0:01:53.5]}
1-0

[Event "Early-Titled-Tuesday-Blitz-October-10-2023"]
[Site "Chess.com"]
[Date "2023.10.10"]
[Round "1"]
[White "YouJustFoundYourGodfather"]
[Black "carloseduar100"]
[Result "1-0"]
[WhiteElo "2633"]
[BlackElo "2335"]
[TimeControl "180+1"]
[EndTime "8:03:19 PDT"]
[Termination "YouJustFoundYourGodfather won by resignation"]

1. g3 {[%clk 0:02:56]} 1... d5 {[%clk 0:02:58.9]} 2. Bg2 {[%clk 0:02:56.9]} 2...
c6 {[%clk 0:02:58.8]} 3. d3 {[%clk 0:02:56.8]} 3... Nf6 {[%clk 0:02:59.2]} 4.
Nc3 {[%clk 0:02:55.9]} 4... Bf5 {[%clk 0:02:58.4]} 5. Nf3 {[%clk 0:02:54.7]}
5... e6 {[%clk 0:02:58.8]} 6. Nh4 {[%clk 0:02:54.1]} 6... Bg6 {[%clk 0:02:58.6]}
7. e4 {[%clk 0:02:52.5]} 7... Nbd7 {[%clk 0:02:57.6]} 8. O-O {[%clk 0:02:50.1]}
8... Bd6 {[%clk 0:02:53.9]} 9. f4 {[%clk 0:02:45.9]} 9... dxe4 {[%clk
0:02:51.2]} 10. dxe4 {[%clk 0:02:43.1]} 10... Bc5+ {[%clk 0:02:51]} 11. Kh1
{[%clk 0:02:43.1]} 11... Ng4 {[%clk 0:02:51.6]} 12. Qxg4 {[%clk 0:02:42.8]}
12... Nf6 {[%clk 0:01:29.7]} 13. Qd1 {[%clk 0:02:24]} 13... Qc7 {[%clk
0:01:28.3]} 14. e5 {[%clk 0:02:19.6]} 14... Nd5 {[%clk 0:01:28.5]} 15. Nxd5
{[%clk 0:02:18.4]} 15... exd5 {[%clk 0:01:26.7]} 16. f5 {[%clk 0:02:17]} 1-0

[Event "Early-Titled-Tuesday-Blitz-October-10-2023"]
[Site "Chess.com"]
[Date "2023.10.10"]
[Round "1"]
[White "Amirreza_p"]
[Black "kidagent"]
[Result "1-0"]
[WhiteElo "2590"]
[BlackElo "2261"]
[TimeControl "180+1"]
[EndTime "8:03:27 PDT"]
[Termination "Amirreza_p won by resignation"]

1. d4 {[%clk 0:02:59]} 1... d5 {[%clk 0:02:59.3]} 2. Bf4 {[%clk 0:02:59.6]} 2...
Nf6 {[%clk 0:02:57.5]} 3. e3 {[%clk 0:03:00.5]} 3... c5 {[%clk 0:02:56.6]} 4. c3
{[%clk 0:03:00]} 4... Nc6 {[%clk 0:02:56.2]} 5. Nd2 {[%clk 0:02:59]} 5... e6
{[%clk 0:02:53.6]} 6. Ngf3 {[%clk 0:02:55.3]} 6... Bd6 {[%clk 0:02:53.6]} 7. Bg3
{[%clk 0:02:50.2]} 7... O-O {[%clk 0:02:52]} 8. Bd3 {[%clk 0:02:50.2]} 8... Re8
{[%clk 0:02:46.7]} 9. Ne5 {[%clk 0:02:48.7]} 9... Bxe5 {[%clk 0:02:35.5]} 10.
dxe5 {[%clk 0:02:47.5]} 10... Nd7 {[%clk 0:02:36.1]} 11. f4 {[%clk 0:02:43.2]}
11... d4 {[%clk 0:02:28.3]} 12. Ne4 {[%clk 0:02:33.5]} 12... Nf8 {[%clk
0:02:20.1]} 13. Qh5 {[%clk 0:02:25.4]} 13... dxe3 {[%clk 0:02:10.1]} 14. O-O-O
{[%clk 0:02:11.7]} 14... Qc7 {[%clk 0:02:00.7]} 15. Nf6+ {[%clk 0:01:57.6]}
15... gxf6 {[%clk 0:01:50.6]} 16. exf6 {[%clk 0:01:58.5]} 1-0

[Event "Early-Titled-Tuesday-Blitz-October-10-2023"]
[Site "Chess.com"]
[Date "2023.10.10"]
[Round "1"]
[White "mishanick"]
[Black "guillembaches"]
[Result "1-0"]
[WhiteElo "3074"]
[BlackElo "2517"]
[TimeControl "180+1"]
[EndTime "8:03:32 PDT"]
[Termination "mishanick won by resignation"]

1. d4 {[%clk 0:02:59.7]} 1... d5 {[%clk 0:02:59.9]} 2. c4 {[%clk 0:02:59.7]}
2... Nc6 {[%clk 0:03:00.1]} 3. Nf3 {[%clk 0:02:48.7]} 3... Bg4 {[%clk
0:02:59.4]} 4. Bg5 {[%clk 0:02:49.2]} 4... h6 {[%clk 0:02:50.6]} 5. Bh4 {[%clk
0:02:46.7]} 5... Bxf3 {[%clk 0:02:40.2]} 6. gxf3 {[%clk 0:02:44.7]} 6... g5
{[%clk 0:02:33.2]} 7. Bg3 {[%clk 0:02:44.1]} 7... e6 {[%clk 0:02:29.6]} 8. Nc3
{[%clk 0:02:43.8]} 8... Bg7 {[%clk 0:02:28.3]} 9. e3 {[%clk 0:02:41.4]} 9...
Nge7 {[%clk 0:02:28]} 10. Bd3 {[%clk 0:02:32.5]} 10... Qd7 {[%clk 0:02:20.3]}
11. cxd5 {[%clk 0:02:26.8]} 11... exd5 {[%clk 0:02:19.8]} 12. Qb3 {[%clk
0:02:23.7]} 12... Rb8 {[%clk 0:02:12.4]} 13. h4 {[%clk 0:02:17.2]} 13... g4
{[%clk 0:02:01.6]} 14. fxg4 {[%clk 0:02:17]} 14... Qxg4 {[%clk 0:01:59.9]} 15.
Nxd5 {[%clk 0:02:15.5]} 15... Nxd5 {[%clk 0:01:57.1]} 16. Qxd5 {[%clk 0:02:16]}
16... O-O {[%clk 0:01:39.3]} 17. Bf5 {[%clk 0:02:16]} 17... Ne7 {[%clk
0:01:33.2]} 18. Qxf7+ {[%clk 0:02:11.7]} 18... Kxf7 {[%clk 0:01:27.7]} 19. Bxg4
{[%clk 0:02:12.6]} 19... Nd5 {[%clk 0:01:22.9]} 20. Rc1 {[%clk 0:02:12]} 20...
Rbd8 {[%clk 0:01:19]} 21. Bxc7 {[%clk 0:02:10.3]} 21... Kg8 {[%clk 0:01:16.6]}
22. Bxd8 {[%clk 0:02:09.7]} 1-0

[Event "Early-Titled-Tuesday-Blitz-October-10-2023"]
[Site "Chess.com"]
[Date "2023.10.10"]
[Round "1"]
[White "ploxoi"]
[Black "BocharovD"]
[Result "0-1"]
[WhiteElo "2431"]
[BlackElo "2748"]
[TimeControl "180+1"]
[EndTime "8:03:35 PDT"]
[Termination "BocharovD won by resignation"]

1. d4 {[%clk 0:03:00.9]} 1... Nf6 {[%clk 0:02:59.2]} 2. c4 {[%clk 0:03:01.4]}
2... e6 {[%clk 0:02:59.9]} 3. g3 {[%clk 0:03:01.8]} 3... c5 {[%clk 0:02:58.8]}
4. d5 {[%clk 0:03:01.7]} 4... exd5 {[%clk 0:02:59.7]} 5. cxd5 {[%clk 0:03:02.2]}
5... d6 {[%clk 0:03:00.6]} 6. Nc3 {[%clk 0:03:02.7]} 6... g6 {[%clk 0:03:01.1]}
7. Bg2 {[%clk 0:03:03.4]} 7... Bg7 {[%clk 0:03:01.7]} 8. Nf3 {[%clk 0:03:04.3]}
8... O-O {[%clk 0:03:02.2]} 9. O-O {[%clk 0:03:05.2]} 9... Re8 {[%clk
0:03:02.9]} 10. Nd2 {[%clk 0:03:05.2]} 10... a6 {[%clk 0:03:00.2]} 11. a4 {[%clk
0:03:05.3]} 11... Nbd7 {[%clk 0:03:00.7]} 12. h3 {[%clk 0:03:05.8]} 12... Rb8
{[%clk 0:03:00.2]} 13. Nc4 {[%clk 0:03:06.3]} 13... Ne5 {[%clk 0:03:00]} 14. Na3
{[%clk 0:03:07]} 14... Nh5 {[%clk 0:02:59.5]} 15. e4 {[%clk 0:03:06.8]} 15...
Bd7 {[%clk 0:02:55.8]} 16. a5 {[%clk 0:02:53.2]} 16... b5 {[%clk 0:02:51.9]} 17.
axb6 {[%clk 0:02:52.5]} 17... Bb5 {[%clk 0:02:51.3]} 18. Naxb5 {[%clk
0:02:49.3]} 18... axb5 {[%clk 0:02:52.2]} 19. Nxb5 {[%clk 0:02:50.2]} 19... Qxb6
{[%clk 0:02:52.1]} 20. Na3 {[%clk 0:02:50.8]} 20... Qb3 {[%clk 0:02:49.1]} 21.
Qxb3 {[%clk 0:02:31.4]} 21... Rxb3 {[%clk 0:02:47.9]} 22. Bd2 {[%clk 0:02:19.1]}
22... Rxb2 {[%clk 0:02:40.1]} 23. Bc3 {[%clk 0:02:17.6]} 23... Rb3 {[%clk
0:02:40.4]} 24. Bxe5 {[%clk 0:01:42.3]} 24... Bxe5 {[%clk 0:02:40.8]} 25. Ra2
{[%clk 0:01:42.9]} 25... Ra8 {[%clk 0:02:35.5]} 0-1

[Event "Early-Titled-Tuesday-Blitz-October-10-2023"]
[Site "Chess.com"]
[Date "2023.10.10"]
[Round "1"]
[White "pirulillo"]
[Black "GP9isback23"]
[Result "1-0"]
[WhiteElo "2353"]
[BlackElo "2617"]
[TimeControl "180+1"]
[EndTime "8:03:46 PDT"]
[Termination "pirulillo won by resignation"]

1. e4 {[%clk 0:02:59.5]} 1... c5 {[%clk 0:02:57.7]} 2. Nf3 {[%clk 0:02:57.5]}
2... e6 {[%clk 0:02:57.9]} 3. d3 {[%clk 0:02:55.7]} 3... Nc6 {[%clk 0:02:57.8]}
4. g3 {[%clk 0:02:55.7]} 4... d5 {[%clk 0:02:58.5]} 5. Bg2 {[%clk 0:02:55.1]}
5... Nf6 {[%clk 0:02:59.2]} 6. Nbd2 {[%clk 0:02:52.8]} 6... Be7 {[%clk
0:02:59.4]} 7. O-O {[%clk 0:02:52.4]} 7... O-O {[%clk 0:02:59.6]} 8. e5 {[%clk
0:02:50.6]} 8... Nd7 {[%clk 0:02:59.3]} 9. Re1 {[%clk 0:02:50.1]} 9... b5 {[%clk
0:02:57.7]} 10. Nf1 {[%clk 0:02:46.6]} 10... b4 {[%clk 0:02:57.1]} 11. a4 {[%clk
0:02:45.2]} 11... bxa3 {[%clk 0:02:55.6]} 12. bxa3 {[%clk 0:02:44.4]} 12... a5
{[%clk 0:02:56.2]} 13. a4 {[%clk 0:02:44.2]} 13... Ba6 {[%clk 0:02:55.8]} 14.
Bf4 {[%clk 0:02:43.9]} 14... Rb8 {[%clk 0:02:55.6]} 15. h4 {[%clk 0:02:43.5]}
15... c4 {[%clk 0:02:51.6]} 16. d4 {[%clk 0:02:42.9]} 16... c3 {[%clk
0:02:51.9]} 17. N1h2 {[%clk 0:02:40.2]} 17... Rb2 {[%clk 0:02:52.3]} 18. Bf1
{[%clk 0:02:39]} 18... Bxf1 {[%clk 0:02:51.8]} 19. Kxf1 {[%clk 0:02:37.1]} 19...
Nb4 {[%clk 0:02:52.4]} 20. Rc1 {[%clk 0:02:33.4]} 20... Nb6 {[%clk 0:02:48.7]}
21. Ng5 {[%clk 0:02:29.8]} 21... h6 {[%clk 0:02:46.7]} 22. Qh5 {[%clk
0:02:29.3]} 22... Bxg5 {[%clk 0:02:22.5]} 23. hxg5 {[%clk 0:02:29.1]} 23... hxg5
{[%clk 0:02:13.5]} 24. Bxg5 {[%clk 0:02:28]} 24... Qe8 {[%clk 0:01:33.5]} 25.
Bf6 {[%clk 0:02:26.8]} 25... Nd7 {[%clk 0:01:33.8]} 26. Ng4 {[%clk 0:02:20.1]}
26... Nxc2 {[%clk 0:01:24.5]} 27. Rxc2 {[%clk 0:02:16.2]} 27... Rxc2 {[%clk
0:01:24.4]} 28. Qg5 {[%clk 0:02:15.4]} 1-0

[Event "Early-Titled-Tuesday-Blitz-October-10-2023"]
[Site "Chess.com"]
[Date "2023.10.10"]
[Round "1"]
[White "ylr5000"]
[Black "Mikhail_Bryakin"]
[Result "1-0"]
[WhiteElo "2472"]
[BlackElo "2794"]
[TimeControl "180+1"]
[EndTime "8:03:48 PDT"]
[Termination "ylr5000 won by resignation"]

1. d4 {[%clk 0:03:00.9]} 1... g6 {[%clk 0:02:52.5]} 2. Nf3 {[%clk 0:02:55.8]}
2... Bg7 {[%clk 0:02:50.8]} 3. g3 {[%clk 0:02:56.4]} 3... Nf6 {[%clk 0:02:46.4]}
4. Bg2 {[%clk 0:02:56.8]} 4... O-O {[%clk 0:02:46.8]} 5. O-O {[%clk 0:02:57.3]}
5... d5 {[%clk 0:02:46.6]} 6. c4 {[%clk 0:02:52.1]} 6... dxc4 {[%clk 0:02:46.9]}
7. Na3 {[%clk 0:02:48.6]} 7... Be6 {[%clk 0:02:46.1]} 8. Ne5 {[%clk 0:02:46.6]}
8... Bd5 {[%clk 0:02:40.1]} 9. Naxc4 {[%clk 0:02:45.4]} 9... Bxg2 {[%clk
0:02:39.7]} 10. Kxg2 {[%clk 0:02:46.3]} 10... Nc6 {[%clk 0:02:34.2]} 11. Nxc6
{[%clk 0:02:37.4]} 11... Qd5+ {[%clk 0:02:34.8]} 12. f3 {[%clk 0:02:36.9]} 12...
Qxc6 {[%clk 0:02:35.5]} 13. Ne5 {[%clk 0:02:36.7]} 13... Qe6 {[%clk 0:02:35.5]}
14. Qc2 {[%clk 0:02:31.5]} 14... c6 {[%clk 0:02:33.4]} 15. e4 {[%clk 0:02:29.7]}
15... Rfd8 {[%clk 0:02:32]} 16. Be3 {[%clk 0:02:30.3]} 16... c5 {[%clk
0:02:27.3]} 17. Qxc5 {[%clk 0:02:25.2]} 17... Rac8 {[%clk 0:02:26.5]} 18. Qa3
{[%clk 0:01:59.2]} 18... Rc2+ {[%clk 0:02:18.9]} 19. Rf2 {[%clk 0:01:59.2]}
19... Rxf2+ {[%clk 0:02:17.9]} 20. Bxf2 {[%clk 0:02:00.1]} 20... a6 {[%clk
0:02:17.4]} 21. Rc1 {[%clk 0:01:58.4]} 21... Ne8 {[%clk 0:02:16.1]} 22. Qa5
{[%clk 0:01:40.6]} 22... Rc8 {[%clk 0:02:12.4]} 23. d5 {[%clk 0:01:35]} 23...
Qxe5 {[%clk 0:01:42.8]} 24. Rxc8 {[%clk 0:01:34.3]} 24... Kf8 {[%clk 0:01:42.8]}
25. Qd8 {[%clk 0:01:31]} 1-0

[Event "Early-Titled-Tuesday-Blitz-October-10-2023"]
[Site "Chess.com"]
[Date "2023.10.10"]
[Round "1"]
[White "Logman74"]
[Black "Vladimir_Zakhartsov"]
[Result "0-1"]
[WhiteElo "2469"]
[BlackElo "2833"]
[TimeControl "180+1"]
[EndTime "8:04:13 PDT"]
[Termination "Vladimir_Zakhartsov won by resignation"]

1. e4 {[%clk 0:02:58.1]} 1... c5 {[%clk 0:02:59.2]} 2. Nf3 {[%clk 0:02:58.5]}
2... Nc6 {[%clk 0:02:59]} 3. d4 {[%clk 0:02:59.1]} 3... cxd4 {[%clk 0:02:53.3]}
4. Nxd4 {[%clk 0:02:59.1]} 4... e6 {[%clk 0:02:50.6]} 5. Nc3 {[%clk 0:02:58.8]}
5... Qc7 {[%clk 0:02:50.2]} 6. g3 {[%clk 0:02:56.3]} 6... a6 {[%clk 0:02:47.5]}
7. Bg2 {[%clk 0:02:56.8]} 7... Nf6 {[%clk 0:02:46.2]} 8. O-O {[%clk 0:02:56.9]}
8... h5 {[%clk 0:02:33.3]} 9. Bg5 {[%clk 0:02:53.2]} 9... Bc5 {[%clk 0:02:27]}
10. Nxc6 {[%clk 0:02:43.8]} 10... bxc6 {[%clk 0:02:26.2]} 11. Bxf6 {[%clk
0:02:36.8]} 11... gxf6 {[%clk 0:02:26]} 12. h4 {[%clk 0:02:37.5]} 12... Qxg3
{[%clk 0:02:24]} 13. Qf3 {[%clk 0:01:53.7]} 13... Qxh4 {[%clk 0:02:23.9]} 14.
Na4 {[%clk 0:01:44.4]} 14... Bd6 {[%clk 0:02:12.6]} 15. Qh3 {[%clk 0:01:35.1]}
15... Qxh3 {[%clk 0:02:05]} 16. Bxh3 {[%clk 0:01:34.6]} 16... Rb8 {[%clk
0:02:04.7]} 17. c3 {[%clk 0:01:33.3]} 17... Ke7 {[%clk 0:01:59.2]} 18. Rfd1
{[%clk 0:01:32.1]} 18... Rg8+ {[%clk 0:01:57.9]} 19. Kf1 {[%clk 0:01:29.5]}
19... a5 {[%clk 0:01:58.1]} 20. b3 {[%clk 0:01:19.8]} 20... Be5 {[%clk
0:01:35.2]} 21. Rd3 {[%clk 0:01:18.2]} 21... Ba6 {[%clk 0:01:32.9]} 0-1

[Event "Early-Titled-Tuesday-Blitz-October-10-2023"]
[Site "Chess.com"]
[Date "2023.10.10"]
[Round "1"]
[White "Anton_Demchenko"]
[Black "brm72"]
[Result "1-0"]
[WhiteElo "3014"]
[BlackElo "2513"]
[TimeControl "180+1"]
[EndTime "8:04:16 PDT"]
[Termination "Anton_Demchenko won by resignation"]

1. e4 {[%clk 0:03:00.9]} 1... c5 {[%clk 0:02:59.4]} 2. Nf3 {[%clk 0:02:57.8]}
2... d6 {[%clk 0:02:59.6]} 3. d4 {[%clk 0:02:58.3]} 3... cxd4 {[%clk 0:03:00.5]}
4. Nxd4 {[%clk 0:02:58.9]} 4... Nf6 {[%clk 0:03:00.7]} 5. Nc3 {[%clk 0:02:59.4]}
5... a6 {[%clk 0:03:00.8]} 6. Bd3 {[%clk 0:02:56.5]} 6... e5 {[%clk 0:03:01.1]}
7. Nde2 {[%clk 0:02:56.6]} 7... Be7 {[%clk 0:02:55.4]} 8. O-O {[%clk 0:02:57.2]}
8... Be6 {[%clk 0:02:55]} 9. h3 {[%clk 0:02:57.9]} 9... Nc6 {[%clk 0:02:54.4]}
10. f4 {[%clk 0:02:57.9]} 10... b5 {[%clk 0:02:50.9]} 11. Be3 {[%clk 0:02:44.5]}
11... O-O {[%clk 0:02:48.9]} 12. a4 {[%clk 0:02:33]} 12... b4 {[%clk 0:02:45.6]}
13. Nd5 {[%clk 0:02:33.3]} 13... Bxd5 {[%clk 0:02:21.9]} 14. exd5 {[%clk
0:02:33.5]} 14... Na5 {[%clk 0:02:16.6]} 15. Ng3 {[%clk 0:02:33.5]} 15... Re8
{[%clk 0:02:06.8]} 16. Qf3 {[%clk 0:02:21.6]} 16... Qc7 {[%clk 0:01:50.7]} 17.
b3 {[%clk 0:02:02.3]} 17... Nb7 {[%clk 0:01:46]} 18. Rad1 {[%clk 0:01:54.6]}
18... Nc5 {[%clk 0:01:45.2]} 19. fxe5 {[%clk 0:01:54.9]} 19... dxe5 {[%clk
0:01:40.9]} 20. Bc4 {[%clk 0:01:54.8]} 20... Bd6 {[%clk 0:01:29.5]} 21. Nf5
{[%clk 0:01:54.1]} 21... Rad8 {[%clk 0:01:21]} 22. Nxg7 {[%clk 0:01:49.9]} 22...
e4 {[%clk 0:01:07.3]} 23. Qxf6 {[%clk 0:01:46.1]} 23... Be5 {[%clk 0:01:07.5]}
24. Nxe8 {[%clk 0:01:44.7]} 24... Bxf6 {[%clk 0:01:06.6]} 25. Nxc7 {[%clk
0:01:44.9]} 1-0

[Event "Early-Titled-Tuesday-Blitz-October-10-2023"]
[Site "Chess.com"]
[Date "2023.10.10"]
[Round "1"]
[White "zozik"]
[Black "GeorgiosSouleidis"]
[Result "0-1"]
[WhiteElo "2342"]
[BlackElo "2635"]
[TimeControl "180+1"]
[EndTime "8:04:18 PDT"]
[Termination "GeorgiosSouleidis won by resignation"]

1. d4 {[%clk 0:02:56.1]} 1... Nf6 {[%clk 0:02:56.4]} 2. Nf3 {[%clk 0:02:54.9]}
2... g6 {[%clk 0:02:56.5]} 3. g3 {[%clk 0:02:52.5]} 3... Bg7 {[%clk 0:02:56.7]}
4. Bg2 {[%clk 0:02:53.4]} 4... O-O {[%clk 0:02:57]} 5. O-O {[%clk 0:02:54.2]}
5... d6 {[%clk 0:02:57.7]} 6. c4 {[%clk 0:02:54.6]} 6... Nc6 {[%clk 0:02:58]} 7.
Nc3 {[%clk 0:02:55.1]} 7... e5 {[%clk 0:02:58.4]} 8. b3 {[%clk 0:02:54.8]} 8...
exd4 {[%clk 0:02:44.5]} 9. Nxd4 {[%clk 0:02:55.7]} 9... Nxd4 {[%clk 0:02:44.1]}
10. Qxd4 {[%clk 0:02:54.9]} 10... Ne4 {[%clk 0:02:21.8]} 11. Qxe4 {[%clk
0:02:47.3]} 11... Bxc3 {[%clk 0:02:21.8]} 12. Bh6 {[%clk 0:02:36.9]} 12... Re8
{[%clk 0:02:16.1]} 13. Qc2 {[%clk 0:02:33.1]} 13... Bxa1 {[%clk 0:02:07.1]} 14.
Rxa1 {[%clk 0:02:34]} 14... Qf6 {[%clk 0:01:51.7]} 15. Qc1 {[%clk 0:02:18.4]}
15... Rxe2 {[%clk 0:01:17.4]} 16. Be3 {[%clk 0:02:16.8]} 16... c6 {[%clk
0:00:48.6]} 17. Qd1 {[%clk 0:02:15.3]} 17... Bg4 {[%clk 0:00:41.6]} 18. h3
{[%clk 0:02:08.1]} 18... Rxe3 {[%clk 0:00:38.9]} 19. hxg4 {[%clk 0:02:08.7]}
19... Re7 {[%clk 0:00:35.7]} 20. Rc1 {[%clk 0:02:07.1]} 20... Rae8 {[%clk
0:00:35.7]} 21. Qd2 {[%clk 0:02:06.4]} 21... Re2 {[%clk 0:00:35.3]} 0-1

[Event "Early-Titled-Tuesday-Blitz-October-10-2023"]
[Site "Chess.com"]
[Date "2023.10.10"]
[Round "1"]
[White "Rsnr"]
[Black "MidnightFox"]
[Result "1-0"]
[WhiteElo "2852"]
[BlackElo "2477"]
[TimeControl "180+1"]
[EndTime "8:04:38 PDT"]
[Termination "Rsnr won by resignation"]

1. b3 {[%clk 0:02:53.3]} 1... d6 {[%clk 0:02:59.4]} 2. Bb2 {[%clk 0:02:54.2]}
2... Nd7 {[%clk 0:02:59.1]} 3. g3 {[%clk 0:02:54.2]} 3... Ngf6 {[%clk
0:02:59.5]} 4. Bg2 {[%clk 0:02:54.4]} 4... g6 {[%clk 0:03:00.1]} 5. c4 {[%clk
0:02:54.4]} 5... Bg7 {[%clk 0:03:00.5]} 6. Nc3 {[%clk 0:02:54.5]} 6... O-O
{[%clk 0:03:01]} 7. Nf3 {[%clk 0:02:54.3]} 7... e5 {[%clk 0:03:01.7]} 8. O-O
{[%clk 0:02:53.7]} 8... Re8 {[%clk 0:03:00.7]} 9. e4 {[%clk 0:02:42]} 9... Nh5
{[%clk 0:02:56]} 10. d4 {[%clk 0:02:37.1]} 10... f5 {[%clk 0:02:44.2]} 11. exf5
{[%clk 0:02:36]} 11... gxf5 {[%clk 0:02:44.2]} 12. dxe5 {[%clk 0:02:32.5]} 12...
dxe5 {[%clk 0:02:41.9]} 13. Nxe5 {[%clk 0:02:31.1]} 13... Nxe5 {[%clk
0:02:28.5]} 14. Qxh5 {[%clk 0:02:29.3]} 14... c6 {[%clk 0:02:11.9]} 15. Rad1
{[%clk 0:02:25.9]} 15... Qe7 {[%clk 0:02:01.5]} 16. Rfe1 {[%clk 0:02:26.1]}
16... Be6 {[%clk 0:01:42.7]} 17. Nd5 {[%clk 0:02:05.1]} 17... Bxd5 {[%clk
0:01:20.8]} 18. cxd5 {[%clk 0:01:58.3]} 18... Nf3+ {[%clk 0:01:10.6]} 19. Bxf3
{[%clk 0:01:56.7]} 19... Qxe1+ {[%clk 0:01:11.2]} 20. Rxe1 {[%clk 0:01:57.1]}
20... Rxe1+ {[%clk 0:01:12.1]} 21. Kg2 {[%clk 0:01:58]} 21... Bxb2 {[%clk
0:01:12]} 22. dxc6 {[%clk 0:01:44.8]} 22... bxc6 {[%clk 0:01:07.4]} 23. Qxf5
{[%clk 0:01:40]} 23... Rf8 {[%clk 0:01:00.9]} 24. Qc2 {[%clk 0:01:39.6]} 24...
Bd4 {[%clk 0:00:55.9]} 25. Qc4+ {[%clk 0:01:39]} 1-0